bitfinex/quotes_BTCUSD_20241014
["timestamp","ask_amount","ask_price","bid_price","bid_amount"]
[1728889514465,0.021744,64181.0,64180.0,0.78857464]
[1728889514681,0.021744,64181.0,64180.0,0.80257464]
[1728889514909,0.021744,64181.0,64180.0,0.78857464]
[1728889515397,0.021744,64181.0,64180.0,0.80256863]
[1728889515845,0.021744,64181.0,64180.0,0.82114507]
[1728889516310,0.001644,64190.0,64189.0,0.160789]
[1728889516564,0.001644,64190.0,64189.0,0.71767319]
[1728889516788,0.001644,64190.0,64189.0,0.72879245]
[1728889517493,0.002644,64190.0,64189.0,0.74079245]
[1728889517713,0.001644,64191.0,64190.0,0.162787]
[1728889517964,0.001644,64191.0,64190.0,0.50298872]
[1728889519108,0.001644,64191.0,64190.0,0.49141685]
[1728889519335,0.001644,64191.0,64190.0,0.51695239]
[1728889519978,0.002644,64191.0,64190.0,0.53095239]
[1728889520449,0.001644,64191.0,64190.0,0.51695239]
[1728889520691,0.002644,64191.0,64190.0,0.53278874]
[1728889521135,0.002644,64191.0,64190.0,0.52868032]
[1728889521375,0.002644,64191.0,64190.0,0.51708145]
[1728889521614,0.002644,64191.0,64190.0,0.36129445]
[1728889521839,0.002644,64191.0,64190.0,0.34729445]
[1728889522073,0.001644,64191.0,64190.0,0.34729445]
[1728889522301,0.002644,64191.0,64190.0,0.34729445]
[1728889522537,0.002644,64191.0,64190.0,0.50308145]
[1728889522769,0.001644,64191.0,64190.0,0.50308145]
[1728889523256,0.002644,64191.0,64190.0,0.50908145]
[1728889523480,0.002644,64191.0,64190.0,0.49464293]
[1728889523700,0.002644,64191.0,64190.0,0.50907497]
[1728889523929,0.002644,64191.0,64190.0,0.33928797]
[1728889524160,0.002644,64191.0,64190.0,0.35328797]
[1728889524379,0.002644,64191.0,64190.0,0.18318229]
[1728889524626,0.335329,64191.0,64190.0,0.03583635]
[1728889525079,0.179544,64191.0,64190.0,0.04138802]
[1728889525306,0.178544,64191.0,64190.0,0.03538802]
[1728889525582,0.179544,64191.0,64190.0,0.02738802]
[1728889525802,0.179544,64191.0,64190.0,0.03583635]
[1728889526238,0.179544,64191.0,64190.0,0.04138891]
[1728889526457,0.179544,64191.0,64190.0,0.03583635]
[1728889526674,0.178544,64191.0,64190.0,0.02983635]
[1728889526903,0.179544,64191.0,64190.0,0.03583635]
[1728889531180,0.179544,64191.0,64190.0,0.04138963]
[1728889532704,0.179544,64191.0,64190.0,0.02555328]
[1728889534728,0.179544,64191.0,64190.0,0.02]
[1728889534945,0.179544,64191.0,64190.0,0.02555555]
[1728889535595,0.179544,64191.0,64190.0,0.02555603]
[1728889537164,0.082144,64191.0,64190.0,0.02555603]
[1728889537624,0.082144,64191.0,64190.0,0.19023367]
[1728889537625,0.002644,64191.0,64190.0,0.19023367]
[1728889538090,0.002644,64191.0,64190.0,0.35145768]
[1728889538330,0.002644,64191.0,64190.0,0.36757167]
[1728889538783,0.002644,64191.0,64190.0,0.35868046]
[1728889539029,0.002644,64191.0,64190.0,0.36757047]
[1728889539785,0.002644,64191.0,64190.0,0.35357047]
[1728889540255,0.001644,64191.0,64190.0,0.35757047]
[1728889540477,0.002644,64191.0,64190.0,0.35557047]
[1728889540950,0.001644,64191.0,64190.0,0.35957047]
[1728889541412,0.002644,64191.0,64190.0,0.37957047]
[1728889541649,0.002644,64191.0,64190.0,0.35657047]
[1728889541890,0.001644,64191.0,64190.0,0.34757047]
[1728889542128,0.001644,64191.0,64190.0,0.35657047]
[1728889542375,0.001644,64191.0,64190.0,0.03455946]
[1728889542594,0.001644,64191.0,64190.0,0.01455552]
[1728889543290,0.001644,64191.0,64190.0,0.02655552]
[1728889543535,0.001644,64191.0,64190.0,0.01755552]
[1728889543996,0.002644,64191.0,64190.0,0.03855552]
[1728889544212,0.002644,64191.0,64190.0,0.05411338]
[1728889544435,0.001644,64191.0,64190.0,0.04511338]
[1728889544878,0.002644,64191.0,64190.0,0.05511338]
[1728889545098,0.002644,64191.0,64190.0,0.03955552]
[1728889546302,0.002644,64191.0,64190.0,0.034]
[1728889546525,0.002644,64191.0,64190.0,0.03955555]
[1728889547190,0.002644,64191.0,64190.0,0.034]
[1728889547627,0.173144,64191.0,64190.0,0.034]
[1728889547834,0.328929,64191.0,64190.0,0.034]
[1728889548693,0.328929,64191.0,64190.0,0.01]
[1728889549116,0.328929,64191.0,64190.0,0.015]
[1728889549349,0.451929,64191.0,64190.0,0.015]
[1728889549826,0.451929,64191.0,64190.0,0.005]
[1728889549827,0.450929,64191.0,64190.0,0.005]
[1728889550034,0.450929,64191.0,64190.0,0.008]
[1728889550497,0.450929,64191.0,64190.0,0.005]
[1728889550725,0.295144,64191.0,64181.0,0.04641136]
[1728889550952,0.235406,64182.0,64181.0,0.04641136]
[1728889552076,0.0796,64182.0,64181.0,0.04641136]
[1728889552528,0.0796,64182.0,64181.0,0.04741136]
[1728889552736,0.0796,64182.0,64181.0,0.05296887]
[1728889552945,0.0796,64182.0,64181.0,0.04741136]
[1728889553365,0.0806,64182.0,64181.0,0.05296839]
[1728889553581,0.0806,64182.0,64181.0,0.04741136]
[1728889553808,0.0796,64182.0,64181.0,0.04741136]
[1728889554052,0.0826,64182.0,64181.0,0.001]
[1728889554289,0.0826,64182.0,64180.0,0.000822]
[1728889554517,0.0796,64182.0,64181.0,0.001]
[1728889554749,0.0796,64182.0,64180.0,0.000822]
[1728889555032,0.0806,64182.0,64180.0,0.000822]
[1728889555734,0.0806,64182.0,64181.0,0.005]
[1728889555956,0.0806,64182.0,64181.0,0.005822]
[1728889556193,0.0796,64182.0,64181.0,0.005822]
[1728889556403,0.0796,64182.0,64181.0,0.008822]
[1728889556828,0.0796,64182.0,64181.0,0.005822]
[1728889557044,0.0796,64182.0,64181.0,0.000822]
[1728889557493,0.0806,64182.0,64181.0,0.000822]
[1728889557942,0.0796,64182.0,64181.0,0.001822]
[1728889559328,0.0816,64182.0,64181.0,0.001822]
[1728889559563,0.311593,64187.0,64181.0,0.001822]
[1728889559564,0.1,64186.0,64181.0,0.001822]
[1728889559788,0.082,64187.0,64185.0,0.14179557]
[1728889560478,0.001644,64191.0,64186.0,0.0055532]
[1728889560715,0.001644,64191.0,64190.0,0.14179557]
[1728889560940,0.001644,64191.0,64190.0,0.14734731]
[1728889561165,0.001644,64191.0,64190.0,0.30313431]
[1728889562094,0.001644,64191.0,64190.0,0.46435832]
[1728889562310,0.001644,64191.0,64190.0,0.47824056]
[1728889562972,0.001644,64191.0,64190.0,0.49383422]
[1728889563174,0.002644,64191.0,64190.0,0.48495198]
[1728889563403,0.002644,64191.0,64190.0,0.49395198]
[1728889563640,0.001644,64191.0,64190.0,0.49395198]
[1728889563885,0.001644,64191.0,64190.0,0.48895198]
[1728889564068,0.002644,64191.0,64190.0,0.50983363]
[1728889564769,0.001644,64191.0,64190.0,0.49383363]
[1728889565006,0.001644,64191.0,64190.0,0.50283363]
[1728889565256,0.001644,64191.0,64190.0,0.49383363]
[1728889566342,0.002644,64191.0,64190.0,0.50083363]
[1728889566969,0.001644,64191.0,64190.0,0.50283363]
[1728889567403,0.002644,64191.0,64190.0,0.50083363]
[1728889567620,0.002644,64191.0,64190.0,0.51283363]
[1728889567865,0.001644,64191.0,64190.0,0.50583363]
[1728889568504,0.001644,64191.0,64190.0,0.50582182]
[1728889568725,0.002644,64191.0,64190.0,0.50694659]
[1728889569431,0.078044,64191.0,64190.0,0.02754635]
[1728889569888,0.078044,64191.0,64190.0,0.022822]
[1728889571486,0.233829,64191.0,64190.0,0.022822]
[1728889573295,0.233829,64191.0,64190.0,0.022822]
[1728889573504,0.077044,64191.0,64190.0,0.000822]
[1728889573722,0.077044,64191.0,64190.0,0.004822]
[1728889573935,0.077044,64191.0,64190.0,0.002822]
[1728889574380,0.078044,64191.0,64190.0,0.000822]
[1728889574597,0.080044,64191.0,64190.0,0.000822]
[1728889575050,0.078044,64191.0,64190.0,0.000822]
[1728889575479,0.079044,64191.0,64190.0,0.000822]
[1728889575708,0.078044,64191.0,64190.0,0.000822]
[1728889576814,0.077044,64191.0,64190.0,0.000822]
[1728889577028,0.077044,64191.0,64190.0,0.001822]
[1728889577234,0.232829,64191.0,64190.0,0.000822]
[1728889577484,0.233829,64191.0,64190.0,0.000822]
[1728889577694,0.233829,64191.0,64190.0,0.001822]
[1728889577899,0.232829,64191.0,64190.0,0.000822]
[1728889578319,0.233829,64191.0,64190.0,0.001822]
[1728889578542,0.233829,64191.0,64190.0,0.000822]
[1728889578969,0.233829,64191.0,64190.0,0.001822]
[1728889579204,0.429129,64191.0,64190.0,0.001822]
[1728889579439,0.452129,64191.0,64190.0,0.001822]
[1728889579677,0.451129,64191.0,64190.0,0.001822]
[1728889580103,0.452129,64191.0,64190.0,0.000822]
[1728889580564,0.4978083,64191.0,64190.0,0.002822]
[1728889580788,0.49780867,64191.0,64190.0,0.000822]
[1728889581028,0.455129,64191.0,64190.0,0.000822]
[1728889581293,0.50180596,64191.0,64190.0,0.000822]
[1728889581505,0.49880596,64191.0,64190.0,0.000822]
[1728889581719,0.49980596,64191.0,64190.0,0.000822]
[1728889581944,0.452129,64191.0,64190.0,0.000822]
[1728889582594,0.49880596,64191.0,64190.0,0.000822]
[1728889582799,0.5091266,64191.0,64190.0,0.000822]
[1728889583012,0.5081266,64191.0,64190.0,0.000822]
[1728889583225,0.5111266,64191.0,64190.0,0.000822]
[1728889583435,0.46444964,64191.0,64190.0,0.001822]
[1728889583863,0.46444964,64191.0,64190.0,0.000822]
[1728889584089,0.46544964,64191.0,64190.0,0.000822]
[1728889584560,0.67335061,64191.0,64190.0,0.000822]
[1728889584810,0.69669315,64191.0,64190.0,0.000822]
[1728889586259,0.155806,64182.0,64181.0,0.000822]
[1728889586491,0.328106,64182.0,64181.0,0.000822]
[1728889586740,0.428106,64182.0,64181.0,0.000822]
[1728889587453,0.429106,64182.0,64181.0,0.006822]
[1728889587926,0.429106,64182.0,64181.0,0.014822]
[1728889589812,0.001,64182.0,64181.0,0.014822]
[1728889592168,0.156806,64182.0,64181.0,0.014822]
[1728889592421,0.254406,64182.0,64181.0,0.014822]
[1728889592682,0.331806,64182.0,64181.0,0.014822]
[1728889594115,0.431806,64182.0,64181.0,0.014822]
[1728889596951,0.454806,64182.0,64181.0,0.014822]
[1728889597355,0.0784,64182.0,64181.0,0.014822]
[1728889597554,0.334206,64182.0,64181.0,0.014822]
[1728889598652,0.001,64182.0,64181.0,0.014822]
[1728889599097,0.001,64182.0,64181.0,0.170631]
[1728889599328,0.001,64182.0,64181.0,0.33740647]
[1728889601285,0.001,64182.0,64181.0,0.34629436]
[1728889601702,0.001,64182.0,64181.0,0.33185501]
[1728889601949,0.001,64182.0,64181.0,0.34629823]
[1728889603967,0.001,64182.0,64181.0,0.33740968]
[1728889604191,0.0789,64182.0,64181.0,0.02037667]
[1728889604449,0.234706,64182.0,64181.0,0.02037667]
[1728889604681,0.234706,64182.0,64181.0,0.014822]
[1728889604682,0.080544,64182.0,64181.0,0.014822]
[1728889607913,0.080544,64182.0,64181.0,0.02038035]
[1728889610297,0.23635,64182.0,64181.0,0.014822]
[1728889611350,0.080544,64182.0,64181.0,0.014822]
[1728889611560,0.23635,64182.0,64181.0,0.014822]
[1728889614531,0.35935,64182.0,64181.0,0.014822]
[1728889635817,0.080544,64182.0,64181.0,0.014822]
[1728889636033,0.002644,64182.0,64181.0,0.014822]
[1728889636487,0.002644,64182.0,64181.0,0.02038664]
[1728889638875,0.15845,64182.0,64181.0,0.02038664]
[1728889639294,0.25845,64182.0,64181.0,0.02038664]
[1728889640156,0.102644,64182.0,64181.0,0.02038664]
[1728889640365,0.25845,64182.0,64181.0,0.02038664]
[1728889644784,0.25845,64182.0,64181.0,0.014822]
[1728889645016,0.25845,64182.0,64181.0,0.02039107]
[1728889645242,0.25791758,64182.0,64181.0,0.02039107]
[1728889645959,0.25791758,64182.0,64181.0,0.014822]
[1728889648093,0.25791758,64182.0,64181.0,0.0203911]
[1728889649380,0.30468359,64182.0,64181.0,0.0203911]
[1728889650008,0.25791758,64182.0,64181.0,0.0203911]
[1728889650367,0.38521314,64182.0,64181.0,0.0203911]
[1728889650580,0.33841758,64182.0,64181.0,0.014822]
[1728889650781,0.33841758,64182.0,64181.0,0.02039323]
[1728889650782,0.75562326,64182.0,64181.0,0.02039323]
[1728889650980,0.70693271,64182.0,64181.0,0.014822]
[1728889651303,0.75669711,64182.0,64181.0,0.014822]
[1728889651825,0.89664147,64182.0,64181.0,0.008822]
[1728889651995,0.75622953,64182.0,64181.0,0.008822]
[1728889652161,0.89658442,64182.0,64181.0,0.009822]
[1728889652537,0.89658442,64182.0,64181.0,0.000822]
[1728889652990,0.90358442,64182.0,64181.0,0.004822]
[1728889653199,0.76322953,64182.0,64181.0,0.001822]
[1728889653610,0.76522953,64182.0,64181.0,0.001822]
[1728889658012,0.83435065,64182.0,64181.0,0.001822]
[1728889658227,0.76516034,64182.0,64181.0,0.001822]
[1728889658435,0.77016034,64182.0,64181.0,0.001822]
[1728889659273,0.86576767,64182.0,64181.0,0.001822]
[1728889659484,0.86776767,64182.0,64181.0,0.001822]
[1728889661221,0.86076767,64182.0,64181.0,0.000822]
[1728889661917,0.89517086,64182.0,64181.0,0.001822]
[1728889662147,0.457145,64166.0,64165.0,0.23331234]
[1728889662363,0.76067855,64166.0,64165.0,0.23331234]
[1728889662578,0.155865,64158.0,64148.0,0.00555669]
[1728889662819,0.178865,64158.0,64157.0,0.000822]
[1728889663105,0.357465,64158.0,64157.0,0.000822]
[1728889663342,0.447465,64158.0,64157.0,0.000822]
[1728889664019,0.448465,64158.0,64157.0,0.006822]
[1728889665281,0.449465,64158.0,64157.0,0.006822]
[1728889666528,0.45982176,64158.0,64157.0,0.006822]
[1728889667814,0.62104577,64158.0,64157.0,0.006822]
[1728889669401,0.62104577,64158.0,64157.0,0.000822]
[1728889669402,0.62004577,64158.0,64157.0,0.000822]
[1728889669631,0.62204577,64158.0,64157.0,0.000822]
[1728889670760,0.62104577,64158.0,64157.0,0.000822]
[1728889670971,0.62304577,64158.0,64157.0,0.000822]
[1728889671399,0.76515679,64158.0,64157.0,0.000822]
[1728889671624,0.77015679,64158.0,64157.0,0.000822]
[1728889671841,0.84007064,64158.0,64157.0,0.000822]
[1728889672058,0.77015679,64158.0,64157.0,0.000822]
[1728889672498,0.155904,64142.0,64141.0,0.000823]
[1728889672714,0.75883903,64142.0,64141.0,0.000823]
[1728889672934,0.75883903,64142.0,64141.0,0.01133853]
[1728889673182,0.75883903,64142.0,64141.0,0.000823]
[1728889673815,0.76933376,64142.0,64141.0,0.000823]
[1728889674476,0.77133376,64142.0,64141.0,0.000823]
[1728889675110,0.78533376,64142.0,64141.0,0.000823]
[1728889675321,0.78833376,64142.0,64141.0,0.000823]
[1728889675526,0.77433376,64142.0,64141.0,0.000823]
[1728889675818,0.77133376,64142.0,64141.0,0.000823]
[1728889676030,0.77133376,64142.0,64134.0,0.000823]
[1728889676031,0.50133202,64135.0,64134.0,0.000823]
[1728889676241,0.66255603,64135.0,64134.0,0.000823]
[1728889677557,0.67355603,64135.0,64134.0,0.000823]
[1728889677974,0.67155603,64135.0,64134.0,0.000823]
[1728889678199,0.67355603,64135.0,64134.0,0.000823]
[1728889678423,0.68255603,64135.0,64134.0,0.001823]
[1728889678640,0.68055603,64135.0,64134.0,0.001823]
[1728889679061,0.77685603,64135.0,64134.0,0.001823]
[1728889679267,0.76785603,64135.0,64134.0,0.000823]
[1728889679472,0.77685603,64135.0,64134.0,0.001823]
[1728889679715,0.64730794,64135.0,64134.0,0.001823]
[1728889679931,0.78041896,64135.0,64134.0,0.000823]
[1728889680141,0.77141896,64135.0,64134.0,0.000823]
[1728889680550,0.78541896,64135.0,64134.0,0.000823]
[1728889681004,0.77141896,64135.0,64134.0,0.000823]
[1728889681221,0.76941896,64135.0,64134.0,0.000823]
[1728889681435,0.78341896,64135.0,64134.0,0.000823]
[1728889681654,0.79241896,64135.0,64134.0,0.001823]
[1728889681863,0.65030794,64135.0,64134.0,0.001823]
[1728889682076,0.64530794,64135.0,64134.0,0.001823]
[1728889682770,0.45070794,64135.0,64134.0,0.001823]
[1728889682985,0.44170794,64135.0,64134.0,0.000823]
[1728889683467,0.43670794,64135.0,64134.0,0.001823]
[1728889683702,0.43670794,64135.0,64134.0,0.000823]
[1728889683703,0.44170794,64135.0,64134.0,0.000823]
[1728889684155,0.45070794,64135.0,64134.0,0.000823]
[1728889684606,0.45770794,64135.0,64134.0,0.000823]
[1728889684981,0.46570794,64135.0,64134.0,0.001823]
[1728889685183,0.46570794,64135.0,64134.0,0.000823]
[1728889685184,0.45770794,64135.0,64134.0,0.000823]
[1728889685590,0.46470794,64135.0,64134.0,0.001823]
[1728889686413,0.169921,64135.0,64134.0,0.001823]
[1728889686612,0.169921,64135.0,64134.0,0.01250141]
[1728889687235,0.162921,64135.0,64134.0,0.001823]
[1728889687650,0.269921,64135.0,64134.0,0.001823]
[1728889688070,0.42414501,64135.0,64134.0,0.001823]
[1728889688314,0.66095603,64135.0,64134.0,0.000823]
[1728889688947,0.66795603,64135.0,64134.0,0.001823]
[1728889689148,0.66095603,64135.0,64134.0,0.000823]
[1728889689566,0.66095603,64135.0,64134.0,0.002823]
[1728889690417,0.67295603,64135.0,64134.0,0.000823]
[1728889690639,0.77335603,64135.0,64134.0,0.001823]
[1728889690848,0.76635603,64135.0,64134.0,0.001823]
[1728889691268,0.77935603,64135.0,64134.0,0.001823]
[1728889691677,0.78135603,64135.0,64134.0,0.001823]
[1728889691885,0.77535603,64135.0,64134.0,0.000823]
[1728889692338,0.8080257,64135.0,64134.0,0.001823]
[1728889692539,0.76735603,64135.0,64134.0,0.000823]
[1728889692792,0.77435603,64135.0,64134.0,0.001823]
[1728889693050,0.78735603,64135.0,64134.0,0.001823]
[1728889693284,0.283938,64128.0,64125.0,0.000822]
[1728889693511,0.76567303,64128.0,64125.0,0.000822]
[1728889694145,0.62356201,64128.0,64125.0,0.000822]
[1728889694354,0.76567303,64128.0,64125.0,0.000822]
[1728889694572,0.77167303,64128.0,64125.0,0.000822]
[1728889694783,0.67587303,64128.0,64125.0,0.000822]
[1728889695239,0.68787303,64128.0,64127.0,0.002644]
[1728889695657,0.68287303,64128.0,64127.0,0.002644]
[1728889695869,0.46848175,64128.0,64127.0,0.002644]
[1728889696073,0.46248175,64128.0,64127.0,0.002644]
[1728889696296,0.47548175,64128.0,64127.0,0.002644]
[1728889696524,0.180938,64128.0,64127.0,0.002644]
[1728889697363,0.167938,64128.0,64127.0,0.002644]
[1728889697579,0.180938,64128.0,64127.0,0.002644]
[1728889697777,0.303938,64128.0,64127.0,0.002644]
[1728889697985,0.113,64128.0,64127.0,0.175344]
[1728889698195,0.07785067,64128.0,64127.0,0.18656545]
[1728889698405,0.23678867,64128.0,64127.0,0.01842626]
[1728889698619,0.5371237,64128.0,64127.0,0.001644]
[1728889699043,0.5381237,64128.0,64127.0,0.001644]
[1728889699250,0.5601237,64128.0,64127.0,0.001644]
[1728889699464,0.41801268,64128.0,64127.0,0.001644]
[1728889699672,0.42101268,64128.0,64127.0,0.001644]
[1728889699883,0.42001268,64128.0,64127.0,0.001644]
[1728889700769,0.41801268,64128.0,64127.0,0.001644]
[1728889700990,0.43101268,64128.0,64127.0,0.001644]
[1728889701277,0.44101268,64128.0,64127.0,0.002644]
[1728889701714,0.43101268,64128.0,64127.0,0.001644]
[1728889701932,0.44140129,64128.0,64127.0,0.001644]
[1728889702144,0.44940129,64128.0,64127.0,0.002644]
[1728889702365,0.43640129,64128.0,64127.0,0.002644]
[1728889702572,0.44440129,64128.0,64127.0,0.003644]
[1728889704072,0.58651231,64128.0,64127.0,0.003644]
[1728889706343,0.44440129,64128.0,64127.0,0.003644]
[1728889707884,0.43640129,64128.0,64127.0,0.002644]
[1728889708316,0.49109999,64128.0,64127.0,0.003644]
[1728889708541,0.47609999,64128.0,64127.0,0.001644]
[1728889708755,0.48309999,64128.0,64127.0,0.002644]
[1728889708972,0.49109999,64128.0,64127.0,0.003644]
[1728889709186,0.49109999,64128.0,64127.0,0.002644]
[1728889709187,0.48309999,64128.0,64127.0,0.002644]
[1728889709598,0.49009999,64128.0,64127.0,0.003644]
[1728889711244,0.48309999,64128.0,64127.0,0.002644]
[1728889711564,0.47609999,64128.0,64127.0,0.001644]
[1728889711716,0.49109999,64128.0,64127.0,0.002644]
[1728889711958,0.48409999,64128.0,64127.0,0.002644]
[1728889712227,0.27517728,64128.0,64127.0,0.002644]
[1728889712490,0.161938,64128.0,64127.0,0.001644]
[1728889712732,0.168938,64128.0,64127.0,0.002644]
[1728889712967,0.168938,64128.0,64127.0,0.01056407]
[1728889713179,0.162938,64128.0,64127.0,0.002644]
[1728889713399,0.155938,64128.0,64127.0,0.00956407]
[1728889713820,0.278938,64128.0,64127.0,0.00956407]
[1728889714700,0.286938,64128.0,64127.0,0.00956407]
[1728889714873,0.157938,64128.0,64127.0,0.00956407]
[1728889715077,0.155938,64128.0,64127.0,0.00956407]
[1728889715455,0.156938,64128.0,64127.0,0.01156407]
[1728889715876,0.156938,64128.0,64127.0,0.01556407]
[1728889716278,0.256938,64128.0,64127.0,0.01556407]
[1728889717779,0.256938,64128.0,64127.0,0.007644]
[1728889718229,0.256938,64128.0,64127.0,0.003644]
[1728889718427,0.255938,64128.0,64127.0,0.001644]
[1728889718639,0.255938,64128.0,64127.0,0.005644]
[1728889718840,0.256938,64128.0,64127.0,0.007644]
[1728889721767,0.256938,64128.0,64127.0,0.003644]
[1728889721980,0.255938,64128.0,64127.0,0.001644]
[1728889722184,0.255938,64128.0,64127.0,0.005644]
[1728889722393,0.256938,64128.0,64127.0,0.007644]
[1728889723674,0.258584,64128.0,64127.0,0.007644]
[1728889728519,0.002646,64128.0,64127.0,0.007644]
[1728889728920,0.258584,64128.0,64127.0,0.007644]
[1728889730015,0.002646,64128.0,64127.0,0.14975502]
[1728889730227,0.002646,64128.0,64127.0,0.15766022]
[1728889731117,0.002646,64128.0,64127.0,0.0155492]
[1728889732054,0.002646,64128.0,64127.0,0.66159678]
[1728889732263,0.002646,64128.0,64127.0,0.6775126]
[1728889732488,0.001646,64133.0,64132.0,0.336928]
[1728889732703,0.001646,64133.0,64132.0,0.66259985]
[1728889732912,0.001646,64133.0,64132.0,0.66652333]
[1728889733390,0.001646,64133.0,64132.0,0.33153153]
[1728889733599,0.001646,64133.0,64132.0,0.32595898]
[1728889733815,0.001646,64133.0,64132.0,0.48745312]
[1728889734484,0.002646,64133.0,64132.0,0.50136673]
[1728889734912,0.001646,64133.0,64132.0,0.49136673]
[1728889735139,0.003646,64133.0,64132.0,0.50936673]
[1728889735607,0.003646,64133.0,64132.0,0.50380059]
[1728889735826,0.003646,64133.0,64132.0,0.50936519]
[1728889736260,0.003646,64133.0,64132.0,0.42936519]
[1728889736947,0.003646,64133.0,64132.0,0.19125417]
[1728889740339,0.003646,64133.0,64132.0,0.18568957]
[1728889740565,0.003646,64133.0,64132.0,0.02976157]
[1728889741643,0.159571,64133.0,64132.0,0.02976157]
[1728889743206,0.003646,64133.0,64132.0,0.02976157]
[1728889745467,0.159571,64133.0,64132.0,0.02976157]
[1728889745772,0.259571,64133.0,64132.0,0.02976157]
[1728889746018,0.259571,64133.0,64132.0,0.018]
[1728889746256,0.342671,64133.0,64132.0,0.018]
[1728889746490,0.365671,64133.0,64132.0,0.018]
[1728889749539,0.003646,64133.0,64132.0,0.16018859]
[1728889749789,0.259571,64133.0,64132.0,0.16018859]
[1728889749986,0.259571,64133.0,64132.0,0.1680206]
[1728889750248,0.259571,64133.0,64132.0,0.16018859]
[1728889750462,0.259571,64133.0,64132.0,0.018]
[1728889751101,0.342071,64133.0,64132.0,0.018]
[1728889752616,0.341071,64133.0,64132.0,0.008]
[1728889752785,0.50229501,64133.0,64132.0,0.008]
[1728889752986,0.50329501,64133.0,64132.0,0.013]
[1728889753404,0.50229501,64133.0,64132.0,0.005]
[1728889753675,0.255938,64128.0,64127.0,0.001644]
[1728889756041,0.257938,64128.0,64127.0,0.001644]
[1728889757906,0.255938,64128.0,64127.0,0.001644]
[1728889759085,0.255938,64128.0,64127.0,0.004644]
[1728889759545,0.257938,64128.0,64127.0,0.004644]
[1728889760032,0.255938,64128.0,64127.0,0.004644]
[1728889760244,0.255938,64128.0,64127.0,0.005644]
[1728889760464,0.255938,64128.0,64127.0,0.002644]
[1728889760690,0.255938,64128.0,64127.0,0.004644]
[1728889761203,0.255938,64128.0,64127.0,0.001644]
[1728889761415,0.255938,64128.0,64127.0,0.002644]
[1728889761896,0.255938,64128.0,64127.0,0.005644]
[1728889762151,0.255938,64128.0,64127.0,0.002644]
[1728889762387,0.255938,64128.0,64127.0,0.01079905]
[1728889762634,0.255938,64128.0,64127.0,0.002644]
[1728889762868,0.255938,64128.0,64127.0,0.00979905]
[1728889763606,0.255938,64128.0,64127.0,0.01279905]
[1728889763847,0.1,64130.0,64127.0,0.01379905]
[1728889764066,0.1,64128.0,64127.0,0.01079905]
[1728889764337,0.255931,64131.0,64127.0,0.01379905]
[1728889764550,0.1,64131.0,64128.0,0.29812659]
[1728889764819,0.1,64131.0,64128.0,0.14218859]
[1728889765098,0.1,64131.0,64129.0,0.00813327]
[1728889765306,0.101646,64133.0,64128.0,0.14218859]
[1728889765542,0.101646,64133.0,64129.0,0.00813327]
[1728889765768,0.257572,64133.0,64129.0,0.00813327]
[1728889766011,0.1,64131.0,64128.0,0.14218859]
[1728889766235,0.1,64131.0,64130.0,0.0081238]
[1728889766470,0.1,64131.0,64128.0,0.14218859]
[1728889767176,0.101,64131.0,64128.0,0.14718859]
[1728889767384,0.101,64131.0,64128.0,0.14518859]
[1728889767623,0.101,64131.0,64129.0,0.00813327]
[1728889768033,0.102,64131.0,64128.0,0.14818859]
[1728889768247,0.15793,64131.0,64130.0,0.0081238]
[1728889768462,0.002,64131.0,64129.0,0.00813327]
[1728889768684,0.101646,64133.0,64130.0,0.0081238]
[1728889768896,0.101646,64133.0,64128.0,0.14218859]
[1728889769105,0.1,64131.0,64129.0,0.00813327]
[1728889769310,0.1,64131.0,64128.0,0.14218859]
[1728889769513,0.1,64131.0,64129.0,0.0136968]
[1728889769720,0.102646,64131.0,64129.0,0.0081237]
[1728889769923,0.102646,64131.0,64128.0,0.14818859]
[1728889770132,0.103646,64131.0,64129.0,0.01369688]
[1728889770355,0.102646,64131.0,64129.0,0.0081237]
[1728889770778,0.1,64130.0,64129.0,0.007]
[1728889770987,0.155933,64130.0,64129.0,0.00557333]
[1728889771205,0.255933,64130.0,64129.0,0.00557333]
[1728889771450,0.1,64129.0,64128.0,0.14218859]
[1728889771667,0.1,64129.0,64128.0,0.1477628]
[1728889773681,0.101,64129.0,64128.0,0.1547628]
[1728889773892,0.102,64129.0,64128.0,0.11832919]
[1728889774104,0.102,64129.0,64128.0,0.11275498]
[1728889774315,0.102,64129.0,64128.0,0.11833035]
[1728889774521,0.002,64129.0,64128.0,0.11833035]
[1728889774943,0.001,64129.0,64128.0,0.11133035]
[1728889775156,0.156935,64129.0,64128.0,0.01557537]
[1728889775377,0.337835,64129.0,64128.0,0.02257537]
[1728889775580,0.337835,64129.0,64128.0,0.017]
[1728889776021,0.336835,64129.0,64128.0,0.007]
[1728889776231,0.337835,64129.0,64128.0,0.02257727]
[1728889776433,0.337835,64129.0,64128.0,0.02257733]
[1728889776653,0.337835,64129.0,64128.0,0.017]
[1728889776865,0.337835,64129.0,64128.0,0.02257732]
[1728889777077,0.337835,64129.0,64128.0,0.017]
[1728889779547,0.336835,64129.0,64128.0,0.007]
[1728889779752,0.336835,64129.0,64128.0,0.012]
[1728889779967,0.337835,64129.0,64128.0,0.012]
[1728889780168,0.336835,64129.0,64128.0,0.005]
[1728889780372,0.337835,64129.0,64128.0,0.012]
[1728889780592,0.34838293,64129.0,64128.0,0.012]
[1728889780804,0.34738293,64129.0,64128.0,0.007]
[1728889781007,0.34838293,64129.0,64128.0,0.012]
[1728889781666,0.44068293,64129.0,64128.0,0.012]
[1728889782083,0.48742027,64129.0,64128.0,0.012]
[1728889782301,0.74439926,64129.0,64128.0,0.016]
[1728889782541,0.74539506,64129.0,64128.0,0.016]
[1728889782785,0.74539506,64129.0,64128.0,0.012]
[1728889783026,0.74539506,64129.0,64128.0,0.016822]
[1728889783237,0.74703906,64129.0,64128.0,0.016822]
[1728889783444,0.86393025,64129.0,64128.0,0.016822]